bitfinex/quotes_ETHUSD_20240828
["timestamp","ask_amount","ask_price","bid_price","bid_amount"]
[1724853933772,3.98112,2511.9,2511.3,0.18463853]
[1724853933960,3.98138,2511.7,2511.3,0.10618618]
[1724853934291,4.0807817,2511.8,2511.0,6.2336]
[1724853934439,3.98124,2511.8,2511.4,0.10612682]
[1724853934779,2.61415672,2513.9,2511.0,2.2512]
[1724853934780,0.09953699,2511.7,2511.0,2.2512]
[1724853934989,3.98126,2511.8,2511.1,0.07848638]
[1724853935289,3.98126,2511.8,2511.0,2.874556]
[1724853935290,3.98126,2511.8,2511.0,6.23352]
[1724853935581,3.98126,2511.8,2510.8,3.98271]
[1724853935582,3.98242,2511.1,2510.5,2.3382]
[1724853935784,3.09953699,2511.7,2510.5,2.3382]
[1724853935785,4.08217792,2511.0,2510.5,2.3382]
[1724853936081,4.08217792,2511.0,2510.1,2.4539]
[1724853936082,3.98326,2510.6,2510.1,2.4539]
[1724853936284,3.98251,2511.0,2510.3,3.98357]
[1724853936516,4.08179518,2511.2,2510.5,3.98324]
[1724853936682,3.0,2511.1,2510.6,0.07853157]
[1724853936890,3.98223,2511.2,2510.6,0.07853157]
[1724853937180,3.98223,2511.2,2510.6,4.06159157]
[1724853937418,3.98223,2511.2,2510.4,0.44605216]
[1724853937419,4.08184728,2511.2,2510.4,0.44605216]
[1724853937722,3.98374,2510.2,2509.5,3.98473]
[1724853938021,3.0,2511.1,2509.3,3.98508]
[1724853938022,3.98318,2510.6,2509.9,3.98417]
[1724853938183,3.98374,2510.2,2509.5,7.96951]
[1724853938514,3.98356,2510.4,2509.8,3.98433]
[1724853939015,3.98356,2510.4,2509.7,6.28472]
[1724853939174,3.98368,2510.3,2509.7,6.28472]
[1724853939369,3.98449,2509.8,2509.3,2.4678]
[1724853939689,0.09959093,2510.2,2509.5,3.98473]
[1724853939690,0.09961497,2510.1,2509.5,3.98473]
[1724853940002,3.98379,2510.2,2509.5,4.7086148]
[1724853940241,4.08351907,2510.1,2509.5,0.645253]
[1724853940391,3.98431,2509.9,2509.3,6.45288]
[1724853940708,3.98376,2510.2,2509.5,3.98483]
[1724853940915,3.98376,2510.2,2509.5,4.06344419]
[1724853941066,4.08310945,2510.4,2509.7,3.98453]
[1724853941268,4.08310945,2510.4,2509.9,2.4678]
[1724853941269,3.98383,2510.2,2509.9,2.4678]
[1724853941493,3.98416,2510.0,2509.5,2.4678]
[1724853941694,3.98331,2510.5,2509.1,2.4678]
[1724853941908,3.98496,2509.5,2509.1,2.4678]
[1724853942093,3.98439,2509.8,2509.2,4.06383619]
[1724853942422,3.98456,2509.7,2509.2,5.14023881]
[1724853942718,3.98362,2510.3,2509.1,2.4678]
[1724853942719,3.98492,2509.5,2509.1,2.4678]
[1724853943085,7.96926,2509.7,2509.2,0.07866623]
[1724853943285,3.98461,2509.7,2509.1,2.4678]
[1724853943517,3.98479,2509.6,2509.1,2.4678]
[1724853943679,3.98487,2509.5,2509.1,2.4678]
[1724853944072,4.08403421,2509.8,2509.1,2.4678]
[1724853944279,3.98547,2509.2,2508.7,2.38878378]
[1724853944477,3.98523,2509.3,2508.7,2.38878378]
[1724853944478,3.98523,2509.3,2508.8,0.07871063]
[1724853944790,3.98535,2509.2,2508.7,2.3101]
[1724853944991,3.98593,2508.9,2508.7,2.3101]
[1724853945176,3.98617,2508.7,2508.1,2.2857]
[1724853945377,3.98662,2508.4,2508.1,3.58892445]
[1724853945582,3.98662,2508.4,2508.1,2.2857]
[1724853945782,3.9865,2508.5,2508.2,0.07876592]
[1724853946011,3.98554,2509.1,2508.1,2.2857]
[1724853946012,0.09966103,2508.7,2508.1,2.2857]
[1724853946317,3.98554,2509.1,2507.5,4.52651452]
[1724853946318,3.98692,2508.2,2507.5,2.2857]
[1724853946528,3.9877,2507.8,2507.5,2.2857]
[1724853946690,3.98733,2508.0,2507.5,2.2857]
[1724853946892,3.98733,2508.0,2507.6,0.07881874]
[1724853947201,3.98702,2508.2,2507.6,4.06658874]
[1724853947387,6.98669,2508.4,2507.5,2.51427]
[1724853947388,3.98748,2507.9,2507.5,2.51427]
[1724853947590,3.98748,2507.9,2507.5,2.2857]
[1724853948025,3.98736,2508.0,2507.5,2.2857]
[1724853948624,3.98837,2507.3,2507.0,3.24953215]
[1724853948926,7.97734,2507.1,2507.0,0.82433215]
[1724853949079,8.07706939,2507.1,2507.0,0.82433215]
[1724853949518,12.06573939,2507.1,2507.0,0.82433215]
[1724853949690,11.07706939,2507.1,2507.0,0.82433215]
[1724853949894,11.96697,2506.9,2506.8,1.6486643]
[1724853950308,10.97798,2506.9,2506.8,1.6486643]
[1724853951079,3.0,2506.9,2506.8,1.6486643]
[1724853951286,3.98899,2506.9,2506.8,1.75622774]
[1724853951621,3.0,2506.9,2506.8,1.75622774]
[1724853951798,3.98851,2507.2,2506.8,1.75622774]
[1724853951998,3.98887,2507.0,2506.8,1.75622774]
[1724853952198,4.08850015,2507.1,2506.8,1.75622774]
[1724853952403,7.97798,2506.9,2506.8,1.75622774]
[1724853952587,4.08872575,2506.9,2506.8,1.75622774]
[1724853952927,3.0,2507.5,2506.8,1.75622774]
[1724853953090,6.98832,2507.4,2506.9,0.07889579]
[1724853953427,3.98883,2507.0,2506.9,0.10750386]
[1724853953598,11.96649,2507.0,2506.9,0.10750386]
[1724853953920,11.96649,2507.0,2506.8,1.6486643]
[1724853953921,7.97798,2506.9,2506.8,1.6486643]
[1724853954134,3.0,2507.0,2506.5,3.9896]
[1724853954300,3.98842,2507.3,2506.6,4.0683382]
[1724853954486,0.09972618,2507.2,2506.6,0.18950457]
[1724853954683,3.98927,2506.8,2506.6,0.11058637]
[1724853954887,4.08903867,2506.7,2506.6,0.11058637]
[1724853955089,3.98887,2507.0,2506.2,3.98998]
[1724853955397,3.98887,2507.0,2506.6,0.1104895]
[1724853955701,3.98855,2507.2,2506.2,3.98998]
[1724853955702,3.98855,2507.2,2506.7,0.11042991]
[1724853956022,3.98907,2506.9,2506.3,2.4196837]
[1724853956203,3.98846,2507.3,2506.8,0.11037033]
[1724853956406,3.98867,2507.1,2506.8,0.11037033]
[1724853956611,3.0,2507.4,2506.5,23.54961]
[1724853956612,3.0,2507.4,2506.5,19.56]
[1724853956798,3.98883,2507.0,2506.9,0.11031076]
[1724853956998,0.09973353,2507.1,2506.6,3.98943]
[1724853957228,3.98883,2507.0,2506.9,0.11031076]
[1724853957430,3.98883,2507.0,2506.6,0.0789208]
[1724853957628,3.98883,2507.0,2506.9,0.11031076]
[1724853957951,3.98883,2507.0,2506.5,19.56]
[1724853957952,3.9891,2506.9,2506.5,19.56]
[1724853958102,4.08890905,2506.8,2506.5,19.56]
[1724853958302,0.09973915,2506.7,2506.5,19.56]
[1724853958487,4.08890917,2506.8,2506.2,25.89117]
[1724853958918,0.09973922,2506.7,2506.2,21.9012]
[1724853959137,3.98994,2506.3,2505.7,23.55078]
[1724853959311,0.09973922,2506.7,2505.8,19.56]
[1724853959312,8.08009803,2506.2,2505.8,19.56]
[1724853959526,4.08986803,2506.2,2505.8,19.56]
[1724853959730,3.99026,2506.1,2505.6,21.9509]
[1724853959933,0.09976477,2506.0,2505.6,21.9509]
[1724853960117,3.98985,2506.4,2505.6,21.9509]
[1724853960308,0.09975645,2506.3,2505.7,2.19509]
[1724853960642,3.99037,2506.1,2505.6,2.3909]
[1724853960947,0.09977283,2506.0,2505.6,2.3909]
[1724853961306,3.99,2506.3,2505.7,4.06978279]
[1724853961537,3.99,2506.3,2505.6,2.62999]
[1724853961538,0.09975967,2506.2,2505.6,2.62999]
[1724853961825,0.09976723,2506.7,2506.1,3.99023]
[1724853962025,3.98919,2506.8,2506.4,2.2625]
[1724853962228,3.98859,2507.2,2506.5,3.98951]
[1724853962437,0.09972465,2507.5,2506.7,3.98927]
[1724853962707,2.4506,2508.3,2507.2,3.98844]
[1724853962708,3.9876,2507.8,2507.2,3.98844]
[1724853963050,0.09970936,2507.7,2507.2,6.25094]
[1724853963206,0.09970936,2507.7,2507.2,6.25091]
[1724853963402,4.08689177,2508.1,2507.5,3.98788]
[1724853963650,4.08689177,2508.1,2507.2,6.88390799]
[1724853963651,3.98667,2508.4,2507.8,3.98743]
[1724853963858,0.06924649,2509.2,2507.6,4.06664496]
[1724853963859,4.08645186,2508.3,2507.6,4.06664496]
[1724853964004,0.0996936,2508.2,2507.5,3.98803]
[1724853964347,0.09969352,2508.3,2507.8,3.98742]
[1724853964722,0.09969352,2508.3,2507.8,3.98753]
[1724853965132,0.09969352,2508.3,2507.9,3.98736]
[1724853965320,0.09967951,2508.4,2507.8,3.98753]
[1724853965536,4.08634951,2508.4,2507.8,3.98753]
[1724853965707,0.09967951,2508.4,2507.3,0.07880622]
[1724853965909,0.09967323,2508.6,2508.2,3.98689]
[1724853966125,0.09967323,2508.6,2507.7,2.4736]
[1724853966335,3.98653,2508.5,2507.7,2.4736]
[1724853966538,0.09968279,2508.4,2507.7,2.4736]
[1724853966747,3.98708,2508.1,2507.5,3.98801]
[1724853966949,6.43603,2509.2,2507.6,4.06669015]
[1724853966950,3.98644,2508.5,2507.6,4.06669015]
[1724853967166,0.09968958,2508.6,2507.6,0.07883015]
[1724853967167,0.09968107,2508.4,2507.6,0.07883015]
[1724853967367,0.09968107,2508.4,2507.6,3.98783]
[1724853967570,0.09968107,2508.4,2507.5,0.07882531]
[1724853967721,0.09968107,2508.4,2507.7,4.09682933]
[1724853967923,4.08559601,2508.9,2507.8,2.39122157]
[1724853968123,0.09968601,2508.9,2507.8,2.42145979]
[1724853968362,3.98739,2507.9,2507.8,0.10905979]
[1724853968540,7.97478,2507.9,2507.8,0.10905979]
[1724853968746,3.98828,2507.4,2506.9,2.3124]
[1724853969047,0.09971519,2507.3,2506.6,3.98934]
[1724853969374,0.09971519,2507.3,2506.7,4.06819955]
[1724853969668,3.0,2507.8,2506.8,3.98899]
[1724853969973,3.0,2507.8,2506.7,1.11590351]
[1724853969974,3.98833,2507.4,2506.7,3.98928]
[1724853970258,3.0,2507.8,2507.2,3.98838]
[1724853970461,0.09970162,2507.7,2507.1,3.98857]
[1724853970677,3.98694,2508.2,2507.2,2.4402]
[1724853970832,3.98694,2508.2,2507.3,0.33074276]
[1724853970833,0.09969238,2508.2,2507.3,0.33074276]
[1724853971169,3.98734,2508.0,2507.3,0.33074276]
[1724853971358,4.08719251,2507.9,2507.3,0.07883686]
[1724853971669,3.98597,2508.8,2507.4,3.98817]
[1724853971670,3.98698,2508.2,2507.4,3.98817]
[1724853971883,3.98666,2508.4,2507.5,19.63883727]
[1724853971884,0.09969255,2508.3,2507.5,19.63883727]
[1724853972042,0.09969255,2508.3,2507.6,3.98776]
[1724853972237,0.09969255,2508.3,2507.6,4.0665753]
[1724853972563,0.09969255,2508.3,2507.5,19.56]
[1724853972564,3.98694,2508.2,2507.5,23.54802]
[1724853972742,0.09969246,2508.1,2507.5,23.54802]
[1724853972939,3.98726,2508.0,2507.5,19.56]
[1724853973142,0.09969265,2507.9,2507.5,19.56]
[1724853973877,0.09969937,2508.3,2507.6,0.07884136]
[1724853974191,3.98695,2508.2,2507.6,4.06671136]
[1724853974499,3.98807,2507.5,2507.2,2.4402]
[1724853974660,3.98867,2507.1,2506.7,2.285]
[1724853974853,0.09972535,2507.0,2506.7,2.285]
[1724853975046,3.55,2507.9,2506.8,0.07891589]
[1724853975047,3.0,2507.4,2506.8,0.07891589]
[1724853975242,3.98784,2507.7,2507.2,3.98849]
[1724853975446,0.09970726,2507.6,2507.0,3.9887]
[1724853975693,0.09970726,2507.6,2507.3,0.1093575]
[1724853975694,3.98819,2507.4,2507.3,0.1093575]
[1724853975895,3.98892,2507.0,2506.7,2.285]
[1724853976048,3.98877,2507.1,2506.3,3.98992]
[1724853976248,3.98913,2506.9,2506.3,7.97977]
[1724853976488,0.09972843,2507.0,2506.6,3.98944]
[1724853976684,0.09973324,2507.2,2506.5,3.98948]
[1724853976988,3.0,2507.6,2506.3,2.3174]
[1724853976989,0.09971799,2507.3,2506.3,2.3174]
[1724853977174,0.09971799,2507.3,2505.8,19.56]
[1724853977175,3.98951,2506.6,2505.9,2.3174]
[1724853977497,3.99038,2506.1,2505.6,0.012]
[1724853977665,3.99006,2506.3,2505.6,0.012]
[1724853977666,0.09976315,2506.2,2505.6,4.00302]
[1724853977990,0.09976072,2506.2,2505.6,0.649721]
[1724853978188,3.99001,2506.3,2505.6,0.72872485]
[1724853978395,3.99001,2506.3,2505.6,4.71967485]
[1724853978576,0.09976196,2506.4,2505.8,3.99073]
[1724853978775,0.09975601,2506.6,2505.9,3.99057]
[1724853978982,0.09974887,2506.6,2506.1,2.2662]
[1724853979362,0.09974887,2506.6,2505.6,4.53851452]
[1724853979363,3.98999,2506.3,2505.7,0.07897067]
[1724853979566,0.0997641,2506.6,2505.7,0.07900898]
[1724853979764,3.98963,2506.5,2505.9,3.99043]
[1724853979975,3.99005,2506.3,2505.6,0.012]
[1724853980150,0.09975202,2506.4,2505.6,0.012]
[1724853980151,3.99059,2505.9,2505.6,0.012]
[1724853980354,0.0997734,2505.8,2505.6,0.012]
[1724853980760,4.0906234,2505.8,2505.6,0.012]
[1724853980965,8.08157891,2505.7,2505.6,0.012]
[1724853981196,12.07247891,2505.7,2505.6,0.012]
[1724853981357,3.9923,2504.9,2504.1,3.99337]
[1724853981555,0.09981887,2504.8,2504.2,3.99315]
[1724853981772,0.09981887,2504.8,2504.2,5.24538743]
[1724853982083,0.09981887,2504.8,2504.2,1.33137798]
[1724853982084,0.09981891,2504.8,2504.2,1.33137798]
[1724853982282,0.09981076,2505.1,2504.3,4.07221055]
[1724853982481,3.99234,2504.8,2504.4,0.11180164]
[1724853982699,0.09981076,2505.1,2504.2,0.0791368]
[1724853982909,0.09981076,2505.1,2504.5,4.10452195]
[1724853983071,3.99143,2505.4,2504.5,4.10452195]
[1724853983072,0.09981092,2505.3,2504.6,0.07912136]
[1724853983275,3.99079,2505.8,2505.0,3.9919]
[1724853983470,3.99116,2505.6,2505.1,0.11138391]
[1724853983713,3.99148,2505.4,2504.8,2.3596]
[1724853983912,3.99069,2505.9,2503.9,2.372]
[1724853983913,2.2725,2505.1,2503.9,2.372]
[1724853984116,3.99324,2504.3,2503.9,2.372]
[1724853984314,3.99283,2504.5,2503.8,3.99392]
[1724853984514,3.99283,2504.5,2503.6,3.9941]
[1724853984515,0.09984227,2504.4,2503.6,3.9941]
[1724853984718,3.99314,2504.3,2503.7,0.62499]
[1724853984922,0.09984224,2504.2,2503.7,0.62499]
[1724853985212,0.09984224,2504.2,2503.6,3.9941]
[1724853985622,0.09984224,2504.2,2503.7,3.99407]
[1724853985817,3.0,2504.8,2503.7,3.99407]
[1724853985818,3.99257,2504.7,2504.1,3.99329]
[1724853986020,3.0,2504.8,2504.3,3.99312]
[1724853986021,0.09982702,2504.8,2504.3,3.99312]
[1724853986222,3.99162,2505.3,2504.7,3.99235]
[1724853986374,0.099797,2505.2,2504.7,4.391665]
[1724853986573,0.099797,2505.2,2504.3,2.2558]
[1724853986574,3.99235,2504.8,2504.3,2.2558]
[1724853986789,2.3573,2505.9,2504.2,0.0791502]
[1724853986790,0.09982913,2505.6,2504.2,0.0791502]
[1724853986988,0.09982913,2505.6,2504.6,3.99251]
[1724853986989,3.99175,2505.2,2504.6,3.99251]
[1724853987189,0.09981229,2505.1,2504.6,3.99255]
[1724853987386,4.09169229,2505.1,2504.6,0.41029953]
[1724853987628,3.99155,2505.3,2504.6,4.40285953]
[1724853987833,0.09981234,2505.6,2504.4,3.99283]
[1724853987834,0.09980477,2505.2,2504.4,3.99283]
[1724853987995,0.09980477,2505.2,2504.0,2.4081]
[1724853987996,0.09980477,2505.2,2504.0,6.40166]
[1724853988200,0.09980477,2505.2,2503.7,3.99395]
[1724853988201,3.99302,2504.4,2503.7,3.99395]
[1724853988400,3.99302,2504.4,2503.2,3.99485]
[1724853988401,3.99402,2503.8,2503.2,3.99472]
[1724853988641,0.05,2505.7,2503.4,3.99446]
[1724853988642,3.99367,2504.0,2503.4,3.99446]
[1724853988821,4.09319158,2504.2,2503.4,3.99446]
[1724853988822,0.09985031,2504.1,2503.4,3.99446]
[1724853989019,3.09985031,2504.1,2503.5,3.99425]
[1724853989225,0.09985031,2504.1,2503.4,4.43734914]
[1724853989422,0.09985031,2504.1,2503.3,3.99462]
[1724853989609,0.09985031,2504.1,2503.4,3.99456]
[1724853989610,4.09342031,2504.1,2503.4,3.99456]
[1724853989808,4.09342031,2504.1,2503.4,0.44287914]
[1724853989809,0.09985031,2504.1,2503.4,0.44287914]
[1724853990134,4.0924903,2504.7,2504.1,3.99334]
[1724853990292,0.0998503,2504.7,2503.9,6.24619]
[1724853990490,3.99325,2504.3,2503.7,3.99398]
[1724853990718,0.09984317,2504.2,2503.5,3.99427]
[1724853990919,0.09984317,2504.2,2503.2,0.43423136]
[1724853990920,3.99388,2503.9,2503.2,0.43423136]
[1724853991121,0.09986437,2503.8,2503.2,3.99485]
[1724853991443,0.09986437,2503.8,2503.1,2.08981355]
[1724853991640,3.09987306,2504.0,2503.2,4.07408231]
[1724853991938,3.09987306,2504.0,2503.3,3.99466]
[1724853991939,0.09987306,2504.0,2503.3,3.99466]
[1724853992229,0.09987306,2504.0,2503.5,3.99438]
[1724853992393,3.09985027,2504.2,2503.5,3.99434]
[1724853992595,3.09985027,2504.2,2503.3,0.87050072]
[1724853992835,3.99378,2503.9,2503.2,6.32716]
[1724853993056,3.0998603,2504.1,2503.3,0.07923988]
[1724853993232,0.0998592,2504.0,2503.5,3.99428]
[1724853993638,3.09985362,2504.2,2503.8,3.9939]
[1724853993836,3.99256,2504.7,2503.2,6.32712]
[1724853993837,0.09983803,2504.1,2503.2,6.32712]
[1724853994060,0.09983803,2504.6,2504.3,3.9931]
[1724853994212,0.09983803,2504.6,2503.3,4.07139779]
[1724853994213,0.09982554,2504.8,2504.1,3.99334]
[1724853994408,3.99273,2504.6,2504.0,2.3564]
[1724853994660,3.99176,2505.2,2504.0,2.3564]
[1724853994661,0.09983482,2505.0,2504.1,0.07917872]
[1724853995162,3.99261,2504.7,2503.7,2.3564]
[1724853995309,3.99222,2504.9,2503.3,2.89791136]
[1724853995310,3.99297,2504.5,2503.3,2.89791136]
[1724853995509,0.09984412,2504.4,2503.7,3.99398]
[1724853995924,3.99356,2504.1,2503.3,2.4557]
[1724853996139,0.09985788,2504.2,2503.7,3.99396]
[1724853996340,0.09985788,2504.2,2503.4,3.99453]
[1724853996341,3.09985788,2504.2,2503.4,3.99453]
[1724853996656,3.99359,2504.1,2503.5,3.99437]
[1724853996876,0.09985678,2504.0,2503.6,3.99412]
[1724853997182,6.35397,2504.8,2503.6,3.99412]
[1724853997183,2.3616,2504.8,2503.7,3.99396]
[1724853997348,0.09982612,2504.7,2504.2,3.99314]
[1724853997544,2.2777,2505.4,2504.2,0.07915786]
[1724853997545,3.99188,2505.1,2504.2,0.07915786]
[1724853997743,2.2777,2505.4,2504.3,0.19423661]
[1724853997744,3.99157,2505.3,2504.3,0.19423661]
[1724853998062,0.09981009,2505.2,2504.3,0.19420253]
[1724853998268,4.09153009,2505.2,2504.6,3.99252]
[1724853998574,3.99233,2504.8,2504.7,0.11484442]
[1724853998786,3.99211,2505.0,2504.7,0.11484442]
[1724853998953,6.45354,2505.4,2504.1,3.99333]
[1724853998954,3.99246,2504.8,2504.1,3.99333]
[1724853999137,3.0998271,2504.7,2503.9,3.99371]
[1724853999475,0.09983899,2504.9,2504.0,0.07917254]
[1724853999672,0.09983899,2504.9,2504.2,3.99316]
[1724853999844,3.99236,2504.8,2504.2,4.392476]
[1724854000048,0.09982503,2504.9,2504.4,3.99287]
[1724854000245,3.99132,2505.5,2504.5,0.07913414]
[1724854000443,3.99132,2505.5,2504.8,3.99219]
[1724854000444,4.09112617,2505.5,2504.8,3.99219]
[1724854000876,0.09979779,2505.8,2505.2,3.99157]
[1724854001033,3.98983,2506.4,2505.4,3.99128]
[1724854001034,4.08975401,2506.3,2505.4,3.99128]
[1724854001232,3.98917,2506.8,2505.3,0.07905461]
[1724854001233,0.0997738,2506.2,2505.3,0.07905461]
[1724854001429,2.3245,2506.8,2505.3,0.07905461]
[1724854001430,3.98973,2506.5,2505.8,3.9906]
[1724854001633,3.98973,2506.5,2505.3,0.07905461]
[1724854001634,0.09976638,2506.4,2505.3,0.07905461]
[1724854001951,0.09976638,2506.4,2505.9,3.99048]
[1724854002153,0.09976638,2506.4,2505.7,3.99081]
[1724854002477,3.99024,2506.2,2505.5,3.99111]
[1724854002635,4.09003651,2506.1,2505.5,3.99111]
[1724854002836,2.3245,2506.8,2505.6,0.07901477]
[1724854003062,3.98994,2506.3,2505.8,3.99067]
[1724854003279,3.98966,2506.5,2505.7,2.4727937]
[1724854003447,0.09975841,2506.4,2505.8,4.06959534]
[1724854003645,0.09975841,2506.4,2505.6,3.991]
[1724854003646,3.98995,2506.3,2505.6,3.991]
[1724854003847,2.4811,2507.2,2505.5,3.99108]
[1724854003848,3.99027,2506.1,2505.5,3.99108]
[1724854004035,3.09977231,2506.0,2504.9,3.9921]
[1724854004247,3.09977231,2506.0,2504.8,9.7092]
[1724854004248,3.9915,2505.4,2504.8,2.3392]
[1724854004552,3.9915,2505.4,2504.4,0.68573995]
[1724854004553,3.99166,2505.3,2504.4,0.68573995]
[1724854004749,3.9914,2505.4,2504.4,3.99294]
[1724854004750,3.99213,2505.0,2504.4,3.99294]
[1724854004929,0.09982149,2504.9,2504.0,0.07914674]
[1724854005134,0.09981108,2505.2,2504.1,3.99343]
[1724854005359,0.09981108,2505.2,2504.6,3.99255]
[1724854005578,3.99235,2504.8,2504.3,3.99303]
[1724854005741,3.09981108,2505.2,2504.1,4.70413037]
[1724854005742,7.09156108,2505.2,2504.6,3.99255]
[1724854005937,3.99151,2505.4,2504.8,3.99232]
[1724854006143,3.99151,2505.4,2504.0,3.99355]
[1724854006144,3.99181,2505.2,2504.0,3.99355]
[1724854006449,0.0998111,2505.2,2504.4,3.99291]
[1724854006681,0.0998111,2505.2,2504.0,3.99355]
[1724854006682,0.09979871,2505.2,2504.9,3.99206]
[1724854006981,0.09979871,2505.2,2504.5,2.2998]
[1724854006982,0.09979871,2505.2,2504.8,3.99222]
[1724854007143,0.09979881,2505.4,2504.5,2.2998]
[1724854007342,0.09979881,2505.4,2504.9,3.99212]
[1724854007647,3.99048,2506.0,2505.5,3.99121]
[1724854007859,3.99048,2506.0,2504.8,3.99222]
[1724854007860,0.09978137,2505.9,2505.1,3.99175]
[1724854008046,3.99082,2505.8,2505.1,3.99175]
[1724854008246,0.09978434,2505.9,2505.4,3.99136]
[1724854008446,3.9895,2506.6,2505.3,3.99143]
[1724854008447,4.09031434,2506.0,2505.3,3.99143]
[1724854008679,0.09977808,2505.9,2504.6,2.62458]
[1724854008980,3.99164,2505.3,2504.6,6.3871]
[1724854009283,0.09980556,2505.2,2504.8,3.99231]
[1724854009451,3.98978,2506.4,2505.3,3.99141]
[1724854009652,3.99076,2505.8,2505.3,3.9915]
[1724854009975,0.09978409,2505.7,2505.1,3.99174]
[1724854010181,3.99063,2505.9,2505.3,3.99138]
[1724854010478,0.09978422,2505.8,2505.0,19.56]
[1724854010678,3.98981,2506.4,2505.0,19.56]
[1724854010679,3.9913,2505.5,2505.0,19.56]
[1724854010885,4.09125707,2505.4,2505.0,19.56]
[1724854011185,3.0,2505.8,2505.2,3.99159]
[1724854011337,0.09978285,2505.7,2505.2,3.99159]
[1724854011534,0.09978285,2505.7,2505.4,3.99135]
[1724854011766,3.99031,2506.1,2505.0,22.652224]
[1724854011767,0.09978278,2506.0,2505.5,3.99117]
[1724854011970,0.09978278,2506.0,2505.6,3.99094]
[1724854012185,0.09978278,2506.0,2505.7,3.99088]
[1724854012469,0.09977012,2506.2,2505.5,3.9911]
[1724854012827,0.09977012,2506.2,2505.2,2.266]
[1724854012828,0.09977012,2506.2,2505.8,3.99071]
[1724854012969,3.98939,2506.7,2505.9,0.07901484]
[1724854013172,3.98909,2506.9,2506.2,3.99001]
[1724854013509,0.09974259,2506.8,2506.3,4.10263059]
[1724854013665,0.09974259,2506.8,2506.4,3.98976]
[1724854013871,3.98924,2506.8,2506.5,0.11268139]
[1724854014070,0.09974139,2506.8,2506.5,3.98961]
[1724854014280,0.09974094,2507.0,2506.6,4.1019918]
[1724854014786,0.09974094,2507.0,2506.6,0.1126218]
[1724854015167,0.09974094,2507.0,2506.6,3.98936]
[1724854015365,0.09973214,2507.1,2506.7,4.10186222]
[1724854015611,4.08849214,2507.1,2506.7,0.11256222]
[1724854015791,0.63261062,2507.1,2506.7,0.11256222]
[1724854015999,3.98893,2507.0,2506.4,3.98969]
[1724854016197,0.09973624,2506.9,2506.8,0.11250264]
[1724854016395,0.09973624,2506.9,2506.6,3.98946]
[1724854016572,0.09973624,2506.9,2506.8,0.11250264]
[1724854016770,0.09973624,2506.9,2506.7,0.11256222]
[1724854017009,0.09973624,2506.9,2506.8,0.11250264]
[1724854017416,0.09973611,2507.0,2506.6,3.98945]
[1724854017711,0.09973611,2507.0,2506.7,0.11256222]
[1724854018614,0.09973227,2507.1,2506.7,0.11256222]
[1724854018800,0.09973227,2507.1,2506.7,4.10185222]
[1724854019683,0.09973227,2507.1,2506.7,0.11256222]
[1724854019896,0.09973227,2507.1,2506.7,4.10184222]
[1724854020127,6.80815848,2507.7,2506.7,4.10184222]
[1724854020128,3.98734,2508.0,2507.4,3.98808]
[1724854020292,6.79445031,2508.2,2507.4,3.98808]
[1724854020293,0.09969388,2507.9,2507.5,3.98793]
[1724854020479,0.09969249,2508.1,2507.6,0.11202617]
[1724854020801,3.98771,2507.7,2507.6,0.11202617]
[1724854021004,4.08741152,2507.7,2507.6,0.11202617]
[1724854021317,3.98851,2507.3,2506.8,19.56]
[1724854021526,3.98851,2507.3,2506.6,3.98934]
[1724854021527,4.08831679,2507.2,2506.6,3.98934]
[1724854021819,0.09972679,2507.2,2506.8,3.98911]
[1724854022118,3.98744,2507.9,2506.8,3.98911]
[1724854022119,0.09972677,2507.4,2506.8,0.8057417]
[1724854022427,4.08686764,2508.1,2506.9,0.07890817]
[1724854022579,4.08686764,2508.1,2507.5,3.98794]
[1724854022580,0.09970764,2508.1,2507.5,3.98794]
[1724854022775,0.09970764,2508.1,2507.5,19.56]
[1724854023022,0.09968851,2508.2,2507.7,3.98759]
[1724854023277,4.08666851,2508.2,2507.5,19.56]
[1724854023491,3.98739,2508.0,2507.5,19.56]
[1724854023673,4.08710316,2507.9,2507.5,19.56]
[1724854023876,3.98787,2507.6,2507.5,19.56]
[1724854024110,6.41154,2508.1,2507.5,19.56]
[1724854024111,3.98768,2507.8,2507.5,19.56]
[1724854024315,4.08700315,2508.0,2506.9,19.59]
[1724854024316,4.08753314,2507.7,2507.0,19.56]
[1724854024497,0.09970314,2507.7,2507.1,4.06744948]
[1724854024698,0.09970314,2507.7,2507.3,3.98833]
[1724854024904,0.09970314,2507.7,2507.1,3.98857]
[1724854025087,3.9882,2507.4,2507.0,19.56]
[1724854025406,0.09971945,2507.7,2507.2,3.98841]
[1724854025814,4.08748945,2507.7,2507.1,3.98863]
[1724854026107,0.09971945,2507.7,2507.2,3.98841]
[1724854026308,4.08755945,2507.7,2507.0,4.06759622]
[1724854026508,0.09971945,2507.7,2507.2,3.98842]
[1724854026677,6.98744,2507.9,2507.4,3.98814]
[1724854026881,3.987,2508.2,2507.7,3.9877]
[1724854027124,3.987,2508.2,2507.5,4.0668677]
[1724854027125,3.98743,2507.9,2507.6,19.56]
[1724854027305,0.09969678,2508.1,2507.7,3.98768]
[1724854027634,0.09968726,2508.2,2507.7,3.98768]
[1724854027927,0.09968726,2508.2,2507.8,0.10988757]
[1724854028111,8.07373726,2508.2,2507.6,19.56]
[1724854028285,8.07373726,2508.2,2507.7,0.1099471]
[1724854028286,3.98708,2508.1,2507.7,0.1099471]
[1724854028483,3.98725,2508.0,2507.7,0.1099471]
[1724854028810,3.98755,2507.8,2507.7,0.1099471]
[1724854028982,4.08708938,2507.9,2507.7,0.1099471]
[1724854029498,7.9751,2507.8,2507.7,0.1099471]
[1724854029994,15.51265,2507.8,2507.7,0.1099471]
[1724854030197,3.98875,2507.1,2506.9,19.56]
[1724854030567,3.98864,2507.2,2506.7,3.98928]
[1724854030568,0.09972547,2507.0,2506.7,3.98928]
[1724854030721,0.09972547,2507.0,2506.7,7.97856]
[1724854030923,0.09972641,2507.3,2506.8,3.98911]
[1724854031153,7.53759,2507.8,2506.8,3.98911]
[1724854031154,3.0,2507.8,2507.3,3.98822]